[Event "*** Titled Tuesday Blitz"]
[Site "Chess.com"]
[Date "2020.04.21"]
[Round "3"]
[White "x-5963514717"]
[Black "poliplaza"]
[Result "1-0"]
[WhiteElo "2637"]
[BlackElo "2410"]
[TimeControl "180+1"]
[EndTime "10:28:49 PDT"]
[Termination "x-5963514717 won on time"]

1. Nf3 {[%clk 0:03:00.9]} 1... c5 {[%clk 0:03:00.2]} 2. g3 {[%clk 0:03:00.4]}
2... Nc6 {[%clk 0:03:00.4]} 3. d4 {[%clk 0:03:01]} 3... e6 {[%clk 0:02:52]} 4.
Bg2 {[%clk 0:03:00.5]} 4... d5 {[%clk 0:02:52.3]} 5. O-O {[%clk 0:03:00]} 5...
Nf6 {[%clk 0:02:52.9]} 6. c4 {[%clk 0:03:00]} 6... Be7 {[%clk 0:02:44.9]} 7.
cxd5 {[%clk 0:02:59]} 7... exd5 {[%clk 0:02:42.5]} 8. dxc5 {[%clk 0:02:57.3]}
8... Bxc5 {[%clk 0:02:43.4]} 9. Nc3 {[%clk 0:02:56.9]} 9... O-O {[%clk
0:02:42.2]} 10. a3 {[%clk 0:02:57.2]} 10... Re8 {[%clk 0:02:40.7]} 11. b4 {[%clk
0:02:56]} 11... Bb6 {[%clk 0:02:36.1]} 12. Bb2 {[%clk 0:02:54.3]} 12... Bg4
{[%clk 0:02:33.5]} 13. Na4 {[%clk 0:02:49.6]} 13... Bc7 {[%clk 0:02:32.4]} 14.
Rc1 {[%clk 0:02:47.6]} 14... Ne4 {[%clk 0:02:23.8]} 15. Nc5 {[%clk 0:02:45]}
15... Nxc5 {[%clk 0:02:20.9]} 16. Rxc5 {[%clk 0:02:45.9]} 16... d4 {[%clk
0:01:35.7]} 17. Nxd4 {[%clk 0:02:35.3]} 17... Nxd4 {[%clk 0:01:33.7]} 18. Qxd4
{[%clk 0:02:35]} 18... Qxd4 {[%clk 0:01:33.1]} 19. Bxd4 {[%clk 0:02:35.9]} 19...
Bb6 {[%clk 0:01:29.9]} 20. Rd5 {[%clk 0:02:24.8]} 20... Bxe2 {[%clk 0:01:29.8]}
21. Rc1 {[%clk 0:02:14.4]} 21... Rac8 {[%clk 0:01:09.1]} 22. Rxc8 {[%clk
0:01:55.9]} 22... Rxc8 {[%clk 0:01:10]} 23. Be4 {[%clk 0:01:50.4]} 23... f5
{[%clk 0:00:48.3]} 24. Bxf5 {[%clk 0:01:21.1]} 24... Rc1+ {[%clk 0:00:46.7]} 25.
Kg2 {[%clk 0:01:21]} 25... Bc4 {[%clk 0:00:25.2]} 26. Rd7 {[%clk 0:01:19.9]}
26... Bb5 {[%clk 0:00:14.8]} 27. Be6+ {[%clk 0:01:06.5]} 27... Kf8 {[%clk
0:00:12.4]} 28. Rf7+ {[%clk 0:01:04.8]} 28... Ke8 {[%clk 0:00:12.3]} 29. Bxb6
{[%clk 0:01:03.7]} 29... axb6 {[%clk 0:00:07.3]} 30. Rxg7 {[%clk 0:00:58.7]}
30... Bc6+ {[%clk 0:00:03.8]} 31. Kh3 {[%clk 0:00:58.8]} 31... Rc3 {[%clk
0:00:03]} 32. Rxh7 {[%clk 0:00:48.5]} 32... Rxa3 {[%clk 0:00:03.3]} 33. Rh4
{[%clk 0:00:46.8]} 33... Ra1 {[%clk 0:00:02.4]} 34. Rd4 {[%clk 0:00:38.9]} 34...
Ke7 {[%clk 0:00:02.2]} 35. Bd5 {[%clk 0:00:37.2]} 35... Bd7+ {[%clk 0:00:01.8]}
36. g4 {[%clk 0:00:34.1]} 36... Rf1 {[%clk 0:00:02]} 37. Kg2 {[%clk 0:00:31.5]}
37... Rc1 {[%clk 0:00:01.8]} 38. h3 {[%clk 0:00:29.5]} 38... Rc3 {[%clk
0:00:01.9]} 39. Bxb7 {[%clk 0:00:27]} 39... Rb3 {[%clk 0:00:01.6]} 40. h4 {[%clk
0:00:25]} 1-0

[Event "*** Titled Tuesday Blitz"]
[Site "Chess.com"]
[Date "2020.04.21"]
[Round "3"]
[White "David_Paravyan"]
[Black "bascheyaro"]
[Result "0-1"]
[WhiteElo "2996"]
[BlackElo "2713"]
[TimeControl "180+1"]
[EndTime "10:28:50 PDT"]
[Termination "bascheyaro won on time"]

1. d4 {[%clk 0:03:00.9]} 1... Nf6 {[%clk 0:02:44.7]} 2. c4 {[%clk 0:02:55]} 2...
e6 {[%clk 0:02:44.8]} 3. Nc3 {[%clk 0:02:55.3]} 3... d5 {[%clk 0:02:45.3]} 4.
cxd5 {[%clk 0:02:54.4]} 4... exd5 {[%clk 0:02:45.3]} 5. Bg5 {[%clk 0:02:55]}
5... c6 {[%clk 0:02:45.5]} 6. e3 {[%clk 0:02:53.9]} 6... h6 {[%clk 0:02:44.9]}
7. Bh4 {[%clk 0:02:53.9]} 7... Nbd7 {[%clk 0:02:44.4]} 8. Bd3 {[%clk 0:02:52.9]}
8... Bd6 {[%clk 0:02:44.8]} 9. f4 {[%clk 0:02:49.3]} 9... g5 {[%clk 0:02:40]}
10. Bg3 {[%clk 0:02:48.8]} 10... Nf8 {[%clk 0:02:32.2]} 11. Nf3 {[%clk
0:02:47.6]} 11... Bg4 {[%clk 0:02:29.8]} 12. O-O {[%clk 0:02:29.2]} 12... Ne6
{[%clk 0:02:29.2]} 13. f5 {[%clk 0:02:23.7]} 13... Nc7 {[%clk 0:02:16.7]} 14.
Qe1 {[%clk 0:02:16.5]} 14... Bxf3 {[%clk 0:02:11]} 15. gxf3 {[%clk 0:01:59]}
15... Qd7 {[%clk 0:02:03]} 16. Be5 {[%clk 0:01:59.2]} 16... Qe7 {[%clk
0:01:58.7]} 17. f4 {[%clk 0:01:37.7]} 17... O-O-O {[%clk 0:01:52.1]} 18. Kh1
{[%clk 0:01:28.4]} 18... Rhg8 {[%clk 0:01:38.7]} 19. Rb1 {[%clk 0:01:03.4]}
19... Nd7 {[%clk 0:01:20.4]} 20. b4 {[%clk 0:00:37.1]} 20... f6 {[%clk
0:01:15.6]} 21. Bxd6 {[%clk 0:00:37.4]} 21... Qxd6 {[%clk 0:01:16.5]} 22. Na4
{[%clk 0:00:37.9]} 22... Rde8 {[%clk 0:01:14.9]} 23. Qd2 {[%clk 0:00:33.4]}
23... Nb6 {[%clk 0:01:03.7]} 24. Nxb6+ {[%clk 0:00:22.1]} 24... axb6 {[%clk
0:00:49.7]} 25. a4 {[%clk 0:00:22.4]} 25... Re7 {[%clk 0:00:46.1]} 26. b5 {[%clk
0:00:21.8]} 26... c5 {[%clk 0:00:43]} 27. a5 {[%clk 0:00:21.6]} 27... c4 {[%clk
0:00:42.3]} 28. Bc2 {[%clk 0:00:14.4]} 28... Rge8 {[%clk 0:00:35.8]} 29. Rfe1
{[%clk 0:00:08.7]} 29... gxf4 {[%clk 0:00:35.9]} 30. exf4 {[%clk 0:00:09.6]}
30... Rxe1+ {[%clk 0:00:35.5]} 31. Rxe1 {[%clk 0:00:10.5]} 31... Rxe1+ {[%clk
0:00:36]} 32. Qxe1 {[%clk 0:00:11.2]} 32... bxa5 {[%clk 0:00:33.6]} 33. Qh4
{[%clk 0:00:07.2]} 33... Nxb5 {[%clk 0:00:32.3]} 34. Qxh6 {[%clk 0:00:07.4]}
34... Nxd4 {[%clk 0:00:32.7]} 35. Bd1 {[%clk 0:00:03.6]} 35... c3 {[%clk
0:00:33.1]} 36. Qh8+ {[%clk 0:00:02.5]} 36... Kc7 {[%clk 0:00:33]} 37. Qg7+
{[%clk 0:00:03.1]} 37... Kb6 {[%clk 0:00:33.4]} 38. Qg3 {[%clk 0:00:02.9]} 38...
c2 {[%clk 0:00:32.6]} 39. Bxc2 {[%clk 0:00:03.2]} 39... Nxc2 {[%clk 0:00:33.5]}
40. h4 {[%clk 0:00:03.9]} 40... d4 {[%clk 0:00:33.7]} 41. Qf2 {[%clk 0:00:01.6]}
41... Ka6 {[%clk 0:00:32.8]} 42. Qxc2 {[%clk 0:00:01.1]} 42... Qxf4 {[%clk
0:00:32.2]} 43. Qd2 {[%clk 0:00:01.4]} 43... Qxd2 {[%clk 0:00:32.3]} 0-1

[Event "*** Titled Tuesday Blitz"]
[Site "Chess.com"]
[Date "2020.04.21"]
[Round "3"]
[White "kallerotmg"]
[Black "varacalli"]
[Result "1-0"]
[WhiteElo "2174"]
[BlackElo "2357"]
[TimeControl "180+1"]
[EndTime "10:28:50 PDT"]
[Termination "kallerotmg won by resignation"]

1. c4 {[%clk 0:02:56]} 1... e6 {[%clk 0:02:57.2]} 2. Nc3 {[%clk 0:02:34.2]} 2...
d5 {[%clk 0:02:56.9]} 3. d4 {[%clk 0:02:32]} 3... Nf6 {[%clk 0:02:56.7]} 4. Bg5
{[%clk 0:02:24.1]} 4... Nbd7 {[%clk 0:02:56.4]} 5. e3 {[%clk 0:02:18.2]} 5... c6
{[%clk 0:02:56.4]} 6. Nf3 {[%clk 0:02:17.2]} 6... Qa5 {[%clk 0:02:56]} 7. cxd5
{[%clk 0:01:34.5]} 7... Nxd5 {[%clk 0:02:54.1]} 8. Qb3 {[%clk 0:01:31.4]} 8...
h6 {[%clk 0:02:51.7]} 9. Bh4 {[%clk 0:01:31]} 9... Bb4 {[%clk 0:02:49.6]} 10.
Rc1 {[%clk 0:01:30.3]} 10... c5 {[%clk 0:02:36.5]} 11. a3 {[%clk 0:01:24.2]}
11... Bxc3+ {[%clk 0:02:31]} 12. bxc3 {[%clk 0:01:24.8]} 12... cxd4 {[%clk
0:02:05.5]} 13. exd4 {[%clk 0:01:23.9]} 13... b6 {[%clk 0:01:57.4]} 14. Nd2
{[%clk 0:01:13.4]} 14... Ba6 {[%clk 0:01:27.4]} 15. Nc4 {[%clk 0:01:09.2]} 15...
Bxc4 {[%clk 0:01:27.3]} 16. Bxc4 {[%clk 0:01:09.7]} 16... O-O {[%clk 0:01:23.7]}
17. O-O {[%clk 0:01:08.6]} 17... Rac8 {[%clk 0:01:19.1]} 18. Bg3 {[%clk
0:00:54]} 18... Rc6 {[%clk 0:01:13.2]} 19. Bb5 {[%clk 0:00:38.9]} 19... Rfc8
{[%clk 0:01:00.9]} 20. c4 {[%clk 0:00:35.6]} 20... N5f6 {[%clk 0:00:47.5]} 21.
Bxc6 {[%clk 0:00:26.7]} 21... Rxc6 {[%clk 0:00:48]} 22. Qb5 {[%clk 0:00:22.3]}
22... Qxb5 {[%clk 0:00:25.5]} 23. cxb5 {[%clk 0:00:23.2]} 23... Rxc1 {[%clk
0:00:21.6]} 24. Rxc1 {[%clk 0:00:24.1]} 24... Nd5 {[%clk 0:00:18]} 25. Rc8+
{[%clk 0:00:24.5]} 25... Kh7 {[%clk 0:00:17.7]} 26. Ra8 {[%clk 0:00:20.4]} 26...
N7f6 {[%clk 0:00:18.6]} 27. Rxa7 {[%clk 0:00:20.2]} 27... Ne4 {[%clk 0:00:19.5]}
28. f3 {[%clk 0:00:17.5]} 28... Nec3 {[%clk 0:00:19.4]} 29. a4 {[%clk
0:00:17.2]} 29... Ne2+ {[%clk 0:00:18.7]} 30. Kf2 {[%clk 0:00:15.9]} 30... Nxd4
{[%clk 0:00:19.6]} 31. Bc7 {[%clk 0:00:15.5]} 31... Nb3 {[%clk 0:00:16.7]} 32.
Rb7 {[%clk 0:00:13.8]} 32... Nc5 {[%clk 0:00:16.3]} 33. Ra7 {[%clk 0:00:13.8]}
33... Nc3 {[%clk 0:00:13.7]} 34. Bxb6 {[%clk 0:00:13.4]} 34... N5xa4 {[%clk
0:00:12.1]} 35. Bd4 {[%clk 0:00:13.1]} 35... f6 {[%clk 0:00:07.5]} 36. Bxf6
{[%clk 0:00:12.5]} 36... Nxb5 {[%clk 0:00:04.8]} 37. Rxg7+ {[%clk 0:00:11.1]}
37... Kh8 {[%clk 0:00:05.7]} 38. Rb7+ {[%clk 0:00:10.7]} 38... Kg8 {[%clk
0:00:05.6]} 39. Rxb5 {[%clk 0:00:11.6]} 1-0

[Event "*** Titled Tuesday Blitz"]
[Site "Chess.com"]
[Date "2020.04.21"]
[Round "3"]
[White "Oleksandr_Bortnyk"]
[Black "ZAbdumalik"]
[Result "1-0"]
[WhiteElo "3030"]
[BlackElo "2697"]
[TimeControl "180+1"]
[EndTime "10:28:52 PDT"]
[Termination "Oleksandr_Bortnyk won on time"]

1. e4 {[%clk 0:03:00.9]} 1... e5 {[%clk 0:02:59.9]} 2. Bc4 {[%clk 0:03:01]} 2...
Nc6 {[%clk 0:02:57.4]} 3. d3 {[%clk 0:03:00.8]} 3... Nf6 {[%clk 0:02:55.5]} 4.
Nc3 {[%clk 0:03:01.1]} 4... Bc5 {[%clk 0:02:49]} 5. Be3 {[%clk 0:03:01.1]} 5...
d6 {[%clk 0:02:43.6]} 6. Bxc5 {[%clk 0:02:44.2]} 6... dxc5 {[%clk 0:02:43.8]} 7.
Nge2 {[%clk 0:02:45.1]} 7... O-O {[%clk 0:02:40.9]} 8. Qd2 {[%clk 0:02:45.3]}
8... Nd4 {[%clk 0:02:40.1]} 9. f4 {[%clk 0:02:30.7]} 9... exf4 {[%clk
0:02:36.3]} 10. Nxf4 {[%clk 0:02:31.6]} 10... c6 {[%clk 0:02:31.1]} 11. O-O
{[%clk 0:02:22.5]} 11... b5 {[%clk 0:02:24.7]} 12. Bb3 {[%clk 0:02:22.8]} 12...
c4 {[%clk 0:02:18.9]} 13. e5 {[%clk 0:02:22.7]} 13... Ne8 {[%clk 0:01:59.7]} 14.
Ne4 {[%clk 0:02:12.2]} 14... cxb3 {[%clk 0:01:57.5]} 15. axb3 {[%clk 0:02:13.1]}
15... Nc7 {[%clk 0:01:54.7]} 16. Nh5 {[%clk 0:02:06.3]} 16... Kh8 {[%clk
0:01:50.2]} 17. Nxg7 {[%clk 0:01:48.8]} 17... Kxg7 {[%clk 0:01:43.5]} 18. Rf6
{[%clk 0:01:49.2]} 18... Nce6 {[%clk 0:01:40.1]} 19. Raf1 {[%clk 0:01:41.1]}
19... a5 {[%clk 0:01:29.8]} 20. c3 {[%clk 0:01:24.8]} 20... Ra7 {[%clk
0:01:22.8]} 21. Nd6 {[%clk 0:00:56.3]} 21... Qb6 {[%clk 0:01:12.8]} 22. Kh1
{[%clk 0:00:49.9]} 22... Kg8 {[%clk 0:00:57.1]} 23. Qf2 {[%clk 0:00:36.3]} 23...
Qc5 {[%clk 0:00:48.3]} 24. Qg3+ {[%clk 0:00:33.6]} 24... Kh8 {[%clk 0:00:46.3]}
25. cxd4 {[%clk 0:00:30.5]} 25... Qxd4 {[%clk 0:00:29.5]} 26. Nf5 {[%clk
0:00:19.4]} 26... Qd5 {[%clk 0:00:29.6]} 27. Nh6 {[%clk 0:00:18.4]} 27... Ng7
{[%clk 0:00:26.4]} 28. h3 {[%clk 0:00:15.6]} 28... Be6 {[%clk 0:00:26.3]} 29.
R1f4 {[%clk 0:00:14.4]} 29... Rd7 {[%clk 0:00:24.1]} 30. d4 {[%clk 0:00:14.7]}
30... Qxb3 {[%clk 0:00:22.6]} 31. Qg5 {[%clk 0:00:11.4]} 31... Qd1+ {[%clk
0:00:20.9]} 32. Kh2 {[%clk 0:00:11.4]} 32... Rxd4 {[%clk 0:00:21.3]} 33. Rxf7
{[%clk 0:00:05.5]} 33... Bxf7 {[%clk 0:00:14.2]} 34. Nxf7+ {[%clk 0:00:06.4]}
34... Rxf7 {[%clk 0:00:09.2]} 35. Rxf7 {[%clk 0:00:07.3]} 1-0

[Event "*** Titled Tuesday Blitz"]
[Site "Chess.com"]
[Date "2020.04.21"]
[Round "3"]
[White "EddieMarsalla"]
[Black "The_Chess_Coach"]
[Result "1-0"]
[WhiteElo "2506"]
[BlackElo "2143"]
[TimeControl "180+1"]
[EndTime "10:28:52 PDT"]
[Termination "EddieMarsalla won by resignation"]

1. d4 {[%clk 0:03:00.9]} 1... Nf6 {[%clk 0:02:59.1]} 2. Bg5 {[%clk 0:03:00.1]}
2... Ne4 {[%clk 0:02:57.9]} 3. Bf4 {[%clk 0:02:59.6]} 3... g6 {[%clk 0:02:56.9]}
4. Nd2 {[%clk 0:02:59.3]} 4... d5 {[%clk 0:02:54.3]} 5. Nxe4 {[%clk 0:02:56.7]}
5... dxe4 {[%clk 0:02:55.2]} 6. e3 {[%clk 0:02:57.1]} 6... Bg7 {[%clk
0:02:54.4]} 7. Bc4 {[%clk 0:02:57]} 7... O-O {[%clk 0:02:53.6]} 8. h3 {[%clk
0:02:56.7]} 8... c5 {[%clk 0:02:52.4]} 9. c3 {[%clk 0:02:55]} 9... cxd4 {[%clk
0:02:45.3]} 10. exd4 {[%clk 0:02:55.9]} 10... Nc6 {[%clk 0:02:45.6]} 11. Ne2
{[%clk 0:02:55.8]} 11... e5 {[%clk 0:02:38]} 12. dxe5 {[%clk 0:02:54.5]} 12...
Nxe5 {[%clk 0:02:37.8]} 13. Bxe5 {[%clk 0:02:54]} 13... Bxe5 {[%clk 0:02:36.8]}
14. Qxd8 {[%clk 0:02:54.3]} 14... Rxd8 {[%clk 0:02:37.1]} 15. Rd1 {[%clk
0:02:54.3]} 15... Rxd1+ {[%clk 0:02:29.4]} 16. Kxd1 {[%clk 0:02:54.5]} 16... Bf5
{[%clk 0:02:25.8]} 17. g4 {[%clk 0:02:54.1]} 17... Bd7 {[%clk 0:02:16.9]} 18.
Kc2 {[%clk 0:02:53.9]} 18... Bc6 {[%clk 0:02:08.2]} 19. Rd1 {[%clk 0:02:51.6]}
19... Kg7 {[%clk 0:02:02.8]} 20. Nd4 {[%clk 0:02:46.1]} 20... Rd8 {[%clk
0:01:52.1]} 21. Ne6+ {[%clk 0:02:27.5]} 21... fxe6 {[%clk 0:01:51.7]} 22. Rxd8
{[%clk 0:02:28.3]} 22... h5 {[%clk 0:01:45.9]} 23. Bxe6 {[%clk 0:02:22.5]} 23...
Kf6 {[%clk 0:01:45.1]} 24. Bd5 {[%clk 0:02:12.1]} 24... Ke7 {[%clk 0:01:42]} 25.
Bxc6 {[%clk 0:02:06.4]} 25... Kxd8 {[%clk 0:01:41.3]} 26. Bxe4 {[%clk
0:02:06.4]} 26... hxg4 {[%clk 0:01:40]} 27. hxg4 {[%clk 0:02:07.3]} 27... g5
{[%clk 0:01:32.8]} 28. Bxb7 {[%clk 0:02:05.3]} 28... Kc7 {[%clk 0:01:33]} 29.
Be4 {[%clk 0:02:01.2]} 29... Bf4 {[%clk 0:01:32.1]} 30. b4 {[%clk 0:02:00.8]}
30... a5 {[%clk 0:01:26.3]} 31. a4 {[%clk 0:01:59.6]} 31... Kb6 {[%clk
0:01:24.4]} 32. Kb3 {[%clk 0:01:58.4]} 32... Bd2 {[%clk 0:01:22.8]} 33. Kc4
{[%clk 0:01:52.9]} 33... Be1 {[%clk 0:01:18.1]} 34. f3 {[%clk 0:01:51.5]} 34...
Bd2 {[%clk 0:01:17.7]} 35. Kd3 {[%clk 0:01:34.3]} 35... Be1 {[%clk 0:01:13.7]}
36. Kc4 {[%clk 0:01:21.9]} 36... Bd2 {[%clk 0:01:12.4]} 37. b5 {[%clk
0:01:20.7]} 37... Be3 {[%clk 0:01:09.5]} 38. Kd5 {[%clk 0:01:19.5]} 38... Bf2
{[%clk 0:01:09.3]} 39. c4 {[%clk 0:01:18.8]} 39... Be3 {[%clk 0:01:09.2]} 40.
Bd3 {[%clk 0:01:15.8]} 40... Bc5 {[%clk 0:01:07.6]} 41. f4 {[%clk 0:01:14.4]}
41... gxf4 {[%clk 0:01:07.2]} 42. g5 {[%clk 0:01:14.8]} 42... f3 {[%clk
0:01:00.6]} 43. g6 {[%clk 0:01:14.5]} 43... Bf8 {[%clk 0:01:00]} 44. c5+ {[%clk
0:01:11.7]} 44... Kc7 {[%clk 0:00:57.4]} 45. b6+ {[%clk 0:01:10.2]} 45... Kb7
{[%clk 0:00:56.8]} 46. Kc4 {[%clk 0:01:08.6]} 46... Ka6 {[%clk 0:00:40.9]} 47.
Kd4+ {[%clk 0:01:05.5]} 47... Kb7 {[%clk 0:00:40.4]} 48. Be4+ {[%clk 0:01:05.6]}
48... Ka6 {[%clk 0:00:38.4]} 49. b7 {[%clk 0:00:45.9]} 49... Ka7 {[%clk
0:00:35.7]} 50. Bxf3 {[%clk 0:00:45.2]} 50... Kb8 {[%clk 0:00:35.4]} 51. c6
{[%clk 0:00:45.4]} 51... Bg7+ {[%clk 0:00:34.5]} 52. Kd5 {[%clk 0:00:45.7]}
52... Kc7 {[%clk 0:00:34.7]} 53. Ke6 {[%clk 0:00:46.6]} 53... Bc3 {[%clk
0:00:32.9]} 54. Kf7 {[%clk 0:00:45.7]} 54... Kb8 {[%clk 0:00:28.5]} 55. g7
{[%clk 0:00:44.8]} 55... Bxg7 {[%clk 0:00:28.5]} 56. Kxg7 {[%clk 0:00:45.7]}
56... Ka7 {[%clk 0:00:28.7]} 57. c7 {[%clk 0:00:41.5]} 57... Ka6 {[%clk
0:00:26.6]} 58. c8=Q {[%clk 0:00:40.7]} 58... Kb6 {[%clk 0:00:25.5]} 1-0

[Event "*** Titled Tuesday Blitz"]
[Site "Chess.com"]
[Date "2020.04.21"]
[Round "3"]
[White "WonderChampion"]
[Black "bupunsu01"]
[Result "0-1"]
[WhiteElo "1782"]
[BlackElo "2295"]
[TimeControl "180+1"]
[EndTime "10:28:52 PDT"]
[Termination "bupunsu01 won by checkmate"]

1. e4 {[%clk 0:03:00.9]} 1... e6 {[%clk 0:02:59.1]} 2. d4 {[%clk 0:02:59.6]}
2... d5 {[%clk 0:02:58.7]} 3. Nc3 {[%clk 0:02:59.4]} 3... Nf6 {[%clk 0:02:57.8]}
4. Bg5 {[%clk 0:02:57.9]} 4... Be7 {[%clk 0:02:57.1]} 5. e5 {[%clk 0:02:57.5]}
5... Nfd7 {[%clk 0:02:56.3]} 6. Bxe7 {[%clk 0:02:57.9]} 6... Qxe7 {[%clk
0:02:56]} 7. Nb5 {[%clk 0:02:58.5]} 7... Na6 {[%clk 0:02:48.4]} 8. c3 {[%clk
0:02:58.4]} 8... O-O {[%clk 0:02:47.1]} 9. f4 {[%clk 0:02:55]} 9... c5 {[%clk
0:02:44.5]} 10. Nf3 {[%clk 0:02:50.9]} 10... cxd4 {[%clk 0:02:43.3]} 11. Nbxd4
{[%clk 0:02:46.7]} 11... Ndc5 {[%clk 0:02:40.3]} 12. Be2 {[%clk 0:02:41.6]}
12... Bd7 {[%clk 0:02:39.8]} 13. O-O {[%clk 0:02:41.1]} 13... Rac8 {[%clk
0:02:31.3]} 14. Bd3 {[%clk 0:02:32.9]} 14... Nxd3 {[%clk 0:02:30]} 15. Qxd3
{[%clk 0:02:33.3]} 15... Nc5 {[%clk 0:02:30.5]} 16. Qc2 {[%clk 0:02:28.5]} 16...
Ne4 {[%clk 0:02:23.2]} 17. Nd2 {[%clk 0:02:23.6]} 17... Nxd2 {[%clk 0:02:13.1]}
18. Qxd2 {[%clk 0:02:17.2]} 18... f6 {[%clk 0:02:12.9]} 19. exf6 {[%clk
0:02:15.1]} 19... Qxf6 {[%clk 0:02:12.3]} 20. Rae1 {[%clk 0:02:13]} 20... b5
{[%clk 0:02:07.9]} 21. Qd3 {[%clk 0:02:11.2]} 21... a6 {[%clk 0:02:03.9]} 22.
Qe3 {[%clk 0:02:06.6]} 22... Rfe8 {[%clk 0:02:01.5]} 23. Rf3 {[%clk 0:02:03.5]}
23... Rc4 {[%clk 0:01:55.6]} 24. Rg3 {[%clk 0:01:58.9]} 24... b4 {[%clk
0:01:53.7]} 25. Rc1 {[%clk 0:01:34.4]} 25... bxc3 {[%clk 0:01:50.9]} 26. bxc3
{[%clk 0:01:33.8]} 26... Rec8 {[%clk 0:01:50.4]} 27. Ne2 {[%clk 0:01:21.9]}
27... Re4 {[%clk 0:01:45.6]} 28. Qf3 {[%clk 0:01:17]} 28... Bb5 {[%clk
0:01:41.6]} 29. Re1 {[%clk 0:01:10.7]} 29... Bxe2 {[%clk 0:01:29.2]} 30. Rxe2
{[%clk 0:01:09.7]} 30... Rxc3 {[%clk 0:01:19.8]} 31. Qf1 {[%clk 0:01:00.6]}
31... Rxe2 {[%clk 0:01:14.2]} 32. Rxc3 {[%clk 0:00:53.5]} 32... Qxc3 {[%clk
0:01:04.1]} 33. Qxe2 {[%clk 0:00:52.4]} 33... Qc1+ {[%clk 0:01:03.5]} 34. Kf2
{[%clk 0:00:50.5]} 34... Qxf4+ {[%clk 0:01:03]} 35. Kg1 {[%clk 0:00:50.1]} 35...
Qd4+ {[%clk 0:01:02.5]} 36. Kf1 {[%clk 0:00:46.4]} 36... Qc4 {[%clk 0:01:01.4]}
37. Qxc4 {[%clk 0:00:45]} 37... dxc4 {[%clk 0:01:01.2]} 38. Ke2 {[%clk
0:00:45.6]} 38... Kf7 {[%clk 0:01:01]} 39. Kd2 {[%clk 0:00:46.2]} 39... e5
{[%clk 0:01:00.2]} 40. Kc3 {[%clk 0:00:46.8]} 40... Ke6 {[%clk 0:01:00.4]} 41.
Kxc4 {[%clk 0:00:47.5]} 41... Kf5 {[%clk 0:00:59.7]} 42. Kd3 {[%clk 0:00:44.5]}
42... e4+ {[%clk 0:00:59.4]} 43. Ke2 {[%clk 0:00:44.9]} 43... Ke5 {[%clk
0:00:59.1]} 44. Ke3 {[%clk 0:00:44.3]} 44... g5 {[%clk 0:00:58.4]} 45. g4 {[%clk
0:00:42.9]} 45... Kd5 {[%clk 0:00:58]} 46. h3 {[%clk 0:00:38]} 46... h6 {[%clk
0:00:57.5]} 47. a3 {[%clk 0:00:37.5]} 47... a5 {[%clk 0:00:57.5]} 48. a4 {[%clk
0:00:36.7]} 48... Ke5 {[%clk 0:00:57.7]} 49. h4 {[%clk 0:00:36.6]} 49... gxh4
{[%clk 0:00:56]} 50. g5 {[%clk 0:00:37.1]} 50... hxg5 {[%clk 0:00:55.8]} 51. Kf2
{[%clk 0:00:37.4]} 51... Kf4 {[%clk 0:00:55.6]} 52. Kg2 {[%clk 0:00:38.3]} 52...
e3 {[%clk 0:00:55.2]} 53. Kh3 {[%clk 0:00:39.2]} 53... e2 {[%clk 0:00:53.8]} 54.
Kg2 {[%clk 0:00:38.5]} 54... e1=Q {[%clk 0:00:52.2]} 55. Kh3 {[%clk 0:00:37.9]}
55... Qg3# {[%clk 0:00:51.6]} 0-1

[Event "*** Titled Tuesday Blitz"]
[Site "Chess.com"]
[Date "2020.04.21"]
[Round "3"]
[White "jacky72"]
[Black "Grischuk"]
[Result "0-1"]
[WhiteElo "2708"]
[BlackElo "3089"]
[TimeControl "180+1"]
[EndTime "10:28:53 PDT"]
[Termination "Grischuk won by resignation"]

1. d4 {[%clk 0:03:00.9]} 1... Nf6 {[%clk 0:02:59.9]} 2. c4 {[%clk 0:03:00.4]}
2... g6 {[%clk 0:02:59]} 3. Nc3 {[%clk 0:02:56.3]} 3... Bg7 {[%clk 0:02:59.3]}
4. e4 {[%clk 0:02:56.3]} 4... d6 {[%clk 0:02:59.8]} 5. Be2 {[%clk 0:02:56.8]}
5... O-O {[%clk 0:02:59.9]} 6. Bg5 {[%clk 0:02:57.3]} 6... Na6 {[%clk
0:02:58.2]} 7. Qd2 {[%clk 0:02:56.2]} 7... e5 {[%clk 0:02:54.6]} 8. d5 {[%clk
0:02:56.2]} 8... Nc5 {[%clk 0:02:54.6]} 9. f3 {[%clk 0:02:56.1]} 9... a5 {[%clk
0:02:53.4]} 10. g4 {[%clk 0:02:54.6]} 10... h6 {[%clk 0:02:41.9]} 11. Be3 {[%clk
0:02:54.7]} 11... h5 {[%clk 0:02:35.2]} 12. h3 {[%clk 0:02:54.9]} 12... Nh7
{[%clk 0:02:33.3]} 13. O-O-O {[%clk 0:02:53.7]} 13... h4 {[%clk 0:02:26.2]} 14.
Bd3 {[%clk 0:02:51.7]} 14... Bf6 {[%clk 0:02:24.1]} 15. Nge2 {[%clk 0:02:44.9]}
15... Bg5 {[%clk 0:02:24.5]} 16. Bc2 {[%clk 0:02:43.7]} 16... Bxe3 {[%clk
0:02:16.1]} 17. Qxe3 {[%clk 0:02:44.6]} 17... Qg5 {[%clk 0:02:16.7]} 18. f4
{[%clk 0:02:28.3]} 18... exf4 {[%clk 0:02:16.1]} 19. Nxf4 {[%clk 0:02:28.7]}
19... Bd7 {[%clk 0:02:14.9]} 20. Kb1 {[%clk 0:02:28.3]} 20... Rae8 {[%clk
0:02:13.1]} 21. Rde1 {[%clk 0:02:22.2]} 21... Re7 {[%clk 0:02:09.8]} 22. Ng2
{[%clk 0:02:15.9]} 22... Rfe8 {[%clk 0:01:45.6]} 23. Rhf1 {[%clk 0:01:59.4]}
23... Qxe3 {[%clk 0:01:32]} 24. Rxe3 {[%clk 0:01:59]} 24... Ng5 {[%clk 0:01:31]}
25. Rfe1 {[%clk 0:01:43.6]} 25... Kg7 {[%clk 0:01:30.6]} 26. b3 {[%clk
0:01:38.7]} 26... Bc8 {[%clk 0:00:54.7]} 27. a3 {[%clk 0:01:35.9]} 27... Nd7
{[%clk 0:00:53.8]} 28. Kb2 {[%clk 0:01:22.2]} 28... Ne5 {[%clk 0:00:53.7]} 29.
Rh1 {[%clk 0:01:18.8]} 29... Bd7 {[%clk 0:00:49.9]} 30. Nxh4 {[%clk 0:01:12.7]}
30... Rh8 {[%clk 0:00:47.7]} 31. Ng2 {[%clk 0:01:13.1]} 31... Bxg4 {[%clk
0:00:43]} 32. h4 {[%clk 0:01:05.7]} 32... Bf3 {[%clk 0:00:32.7]} 33. Rg1 {[%clk
0:00:50.3]} 33... Nh3 {[%clk 0:00:32.6]} 34. Rxf3 {[%clk 0:00:50.5]} 34... Nxg1
{[%clk 0:00:31.8]} 35. Rg3 {[%clk 0:00:46.1]} 35... Ngf3 {[%clk 0:00:29]} 36.
Bd1 {[%clk 0:00:37.9]} 36... Nxh4 {[%clk 0:00:28.9]} 37. Ne3 {[%clk 0:00:38.4]}
37... Kf8 {[%clk 0:00:22.6]} 38. Rh3 {[%clk 0:00:35.2]} 38... Kg8 {[%clk
0:00:20.6]} 39. Kc2 {[%clk 0:00:30.9]} 39... f5 {[%clk 0:00:18.9]} 40. exf5
{[%clk 0:00:27.5]} 40... Nxf5 {[%clk 0:00:19.8]} 41. Nxf5 {[%clk 0:00:28]} 41...
gxf5 {[%clk 0:00:19.5]} 42. Rg3+ {[%clk 0:00:28.3]} 42... Rg7 {[%clk 0:00:19.7]}
43. Re3 {[%clk 0:00:26.5]} 43... Rh2+ {[%clk 0:00:19.7]} 44. Kc1 {[%clk
0:00:24.4]} 44... f4 {[%clk 0:00:18.1]} 45. Re4 {[%clk 0:00:24.6]} 45... f3
{[%clk 0:00:17.4]} 46. Rf4 {[%clk 0:00:24.7]} 46... Nd3+ {[%clk 0:00:17.2]} 0-1